bitfinex-derivatives/quotes_ETHF0:USTF0_20250309
["timestamp","ask_amount","ask_price","bid_price","bid_amount"]
[1741504871425,0.00686986,2184.3,2184.2,3.75729]
[1741504876624,0.00686986,2184.3,2184.2,3.2078]
[1741504876826,0.00686986,2184.3,2184.2,3.75729]
[1741504884337,0.00686986,2184.3,2184.2,3.2078]
[1741504884537,0.00686986,2184.3,2184.2,5.1818]
[1741504885134,0.00686986,2184.3,2184.2,1.974]
[1741504886338,0.00686986,2184.3,2184.2,2.52349]
[1741504886840,0.00686986,2184.3,2184.2,1.974]
[1741504887232,0.00686986,2184.3,2184.2,2.52349]
[1741504887935,0.00686986,2184.3,2184.2,1.974]
[1741504888435,0.00686986,2184.3,2184.2,2.52349]
[1741504889036,0.54951,2184.2,2184.1,1.972]
[1741504889237,1.18811,2184.2,2184.1,1.972]
[1741504889436,1.79631,2184.2,2184.1,1.972]
[1741504890133,0.54952,2184.1,2184.0,0.00686986]
[1741504890332,1.2468,2184.2,2184.0,0.00686986]
[1741504890333,1.79631,2184.2,2184.0,0.00686986]
[1741504890937,1.2468,2184.2,2184.1,0.54952]
[1741504891440,1.2468,2184.2,2184.0,0.00686986]
[1741504891640,1.2468,2184.2,2184.1,0.54952]
[1741504891838,0.00686986,2184.3,2184.2,0.54949]
[1741504892036,0.5953,2184.7,2184.2,3.2078]
[1741504892236,0.5953,2184.7,2184.3,2.623]
[1741504892432,0.5953,2184.7,2184.6,0.54939]
[1741504892929,0.6248,2184.8,2184.7,0.54937]
[1741504893134,0.6394,2185.0,2184.9,0.54932]
[1741504893335,0.64626986,2185.0,2184.8,3.8558]
[1741504893636,1.17412,2184.9,2184.8,3.8558]
[1741504893835,1.17412,2184.9,2184.8,3.2078]
[1741504894031,0.54934,2184.8,2184.7,1.976]
[1741504894342,0.6186,2184.8,2184.7,1.976]
[1741504894537,0.6186,2184.8,2184.7,2.52537]
[1741504894743,0.6248,2184.9,2184.7,2.52537]
[1741504895042,0.6248,2184.9,2184.7,1.976]
[1741504895244,0.6008,2184.8,2184.7,1.976]
[1741504898742,0.6008,2184.8,2184.5,20.55]
[1741504899142,0.54939,2184.6,2184.5,22.53]
[1741504900038,0.54939,2184.6,2184.5,20.55]
[1741504901732,0.54939,2184.6,2184.4,3.2078]
[1741504901733,0.6008,2184.8,2184.4,3.2078]
[1741504901941,1.18812,2184.5,2184.4,3.2078]
[1741504902133,0.6387,2184.5,2184.3,1.98]
[1741504902338,0.54948,2184.3,2184.2,1.979]
[1741504902641,1.2263,2184.4,2184.2,1.979]
[1741504902846,0.54947,2184.3,2184.2,1.979]
[1741504904238,0.54947,2184.3,2184.2,1.978]
[1741504906947,1.18814,2184.5,2184.2,2.52748]
[1741504907246,3.21466986,2185.0,2184.4,3.2078]
[1741504907448,0.6339,2184.8,2184.5,0.6073]
[1741504907643,0.6339,2184.8,2184.7,3.75717]
[1741504907846,0.54933,2184.9,2184.7,3.2078]
[1741504908644,0.00686986,2185.0,2184.8,0.54933]
[1741504909041,0.00686986,2185.0,2184.9,1.15662]
[1741504910149,0.00686986,2185.0,2184.9,0.6073]
[1741504912951,0.00686986,2185.0,2184.9,1.15662]
[1741504914055,0.6058,2185.6,2185.4,0.54919]
[1741504914246,3.75693,2185.7,2185.4,0.54919]
[1741504914247,4.37283,2185.7,2185.4,0.54919]
[1741504914442,4.37283,2185.7,2185.5,0.6159]
[1741504915253,0.54914,2185.6,2185.5,0.6159]
[1741504915957,0.54917,2185.5,2185.4,0.00686986]
[1741504917052,0.54916,2185.6,2185.4,0.00686986]
[1741504917258,0.54917,2185.5,2185.4,0.00686986]
[1741504918051,5.0595,2185.7,2185.4,0.00686986]
[1741504918052,0.54916,2185.6,2185.4,0.00686986]
[1741504918651,0.54914,2185.6,2185.4,0.00686986]
[1741504918953,0.54915,2185.6,2185.4,0.00686986]
[1741504919958,0.54917,2185.5,2185.4,0.00686986]
[1741504924753,0.54915,2185.6,2185.4,0.55605986]
[1741504925358,0.54915,2185.6,2185.4,0.00686986]
[1741504926263,5.0595,2185.7,2185.4,0.00686986]
[1741504926463,0.54917,2185.5,2185.4,0.00686986]
[1741504929365,0.54916,2185.6,2185.4,0.00686986]
[1741504929565,0.54917,2185.5,2185.4,0.00686986]
[1741504929963,5.0595,2185.7,2185.4,0.00686986]
[1741504930164,5.60862,2185.7,2185.4,0.00686986]
[1741504930360,5.60862,2185.7,2185.4,0.63166986]
[1741504930761,5.60862,2185.7,2185.5,0.6003]
[1741504931173,0.54914,2185.6,2185.5,0.6003]
[1741504931562,5.60863,2185.7,2185.5,0.6003]
[1741504932165,4.4527,2185.7,2185.5,0.6003]
[1741504932371,0.5911,2186.1,2185.5,4.4575]
[1741504932571,0.5911,2186.1,2185.9,3.75686]
[1741504932770,0.5911,2186.1,2186.0,1.983]
[1741504932973,0.5911,2186.1,2186.0,2.6043]
[1741504933573,0.5911,2186.1,2186.0,3.15334]
[1741504933876,0.5911,2186.1,2186.0,2.6043]
[1741504935075,0.5911,2186.1,2186.0,3.15334]
[1741504935572,0.5911,2186.1,2186.0,1.983]
[1741504936577,0.5911,2186.1,2185.9,3.2078]
[1741504936779,0.6228,2186.0,2185.9,3.2078]
[1741504936975,0.6228,2186.0,2185.9,1.982]
[1741504937181,1.17184,2186.0,2185.9,1.982]
[1741504938781,1.17184,2186.0,2185.6,3.2078]
[1741504938981,0.5943,2185.9,2185.8,0.54909]
[1741504939388,0.5943,2185.9,2185.7,1.15091]
[1741504939583,0.5943,2185.9,2185.7,0.6018]
[1741504941191,0.54909,2185.8,2185.6,5.1908]
[1741504941387,0.603,2185.7,2185.6,5.1908]
[1741504941590,0.603,2185.7,2185.6,5.73994]
[1741504941985,0.603,2185.7,2185.6,5.1908]
[1741504942490,0.603,2185.7,2185.6,3.2078]
[1741504942689,1.15212,2185.7,2185.6,3.2078]
[1741504945393,0.603,2185.7,2185.6,3.2078]
[1741504945592,0.603,2185.7,2185.6,3.75694]
[1741504946187,0.603,2185.7,2185.6,3.2078]
[1741504948393,3.8306,2186.0,2185.7,0.54911]
[1741504948592,3.8306,2186.0,2185.6,3.8344]
[1741504948792,3.2078,2186.0,2185.7,0.54912]
[1741504949592,1.81,2186.2,2185.6,3.8344]
[1741504949790,2.359,2186.2,2185.9,0.54904]
[1741504950094,2.359,2186.2,2185.4,0.00686986]
[1741504950095,4.58039,2186.1,2185.4,1.99286986]
[1741504950398,0.54905,2186.0,2185.4,2.63456986]
[1741504950586,0.54905,2186.0,2185.7,0.54911]
[1741504950787,0.54905,2186.0,2185.8,0.6417]
[1741504950987,3.2078,2186.1,2185.8,0.6417]
[1741504951491,0.54906,2186.0,2185.8,0.6417]
[1741504952093,3.2078,2186.1,2185.6,3.2078]
[1741504952291,0.54912,2185.8,2185.7,1.989]
[1741504952697,1.86012,2185.8,2185.7,1.989]
[1741504953095,0.54912,2185.7,2185.6,3.2078]
[1741504957498,1.311,2185.8,2185.6,3.2078]
[1741504957897,0.54912,2185.7,2185.6,3.2078]
[1741504958795,1.311,2185.8,2185.6,3.2078]
[1741504959000,1.86011,2185.8,2185.6,3.2078]
[1741504959196,1.311,2185.8,2185.6,3.2078]
[1741504959496,0.6555,2185.8,2185.6,3.2078]
[1741504959696,0.54912,2185.7,2185.6,3.2078]
[1741504961289,0.54912,2185.7,2185.6,5.1978]
[1741504963896,1.20461,2185.8,2185.6,5.1978]
[1741504967108,0.6555,2185.8,2185.6,5.1978]
[1741504967308,1.20461,2185.8,2185.6,5.1978]
[1741504968007,0.54912,2185.7,2185.6,5.1978]
[1741504968399,0.54912,2185.7,2185.6,3.2078]
[1741504971911,0.6555,2185.8,2185.6,3.75693]
[1741504972111,1.2046,2185.8,2185.6,3.75693]
[1741504972413,1.2046,2185.8,2185.6,3.75694]
[1741504972603,3.2078,2186.1,2185.6,3.2078]
[1741504972804,3.7981,2186.1,2185.7,0.6359]
[1741504973206,3.7981,2186.1,2185.8,0.6299]
[1741504973407,0.54906,2186.0,2185.8,0.6299]
[1741504974012,0.54907,2185.9,2185.8,0.6299]
[1741504974310,3.7981,2186.1,2185.8,0.6299]
[1741504974611,0.54906,2186.0,2185.8,0.6299]
[1741504974811,0.54907,2185.9,2185.8,0.6299]
[1741504976312,3.7981,2186.1,2185.6,3.2078]
[1741504976615,1.19851,2185.8,2185.6,3.8336]
[1741504977414,0.6494,2185.8,2185.6,3.8336]
[1741504977614,1.18892,2185.7,2185.6,5.1888]
[1741504978313,1.79142,2185.7,2185.6,5.1888]
[1741504980910,1.79142,2185.7,2185.6,3.2078]
[1741504983014,1.18892,2185.7,2185.6,3.2078]
[1741504983407,3.2078,2186.5,2185.6,7.2078]
[1741504983610,5.1051,2186.5,2185.7,0.6267]
[1741504983814,0.54901,2186.2,2185.8,2.53508]
[1741504984009,0.54901,2186.2,2185.9,0.5964]
[1741504984216,0.54902,2186.1,2185.9,0.5964]
[1741504984410,5.1051,2186.5,2185.9,0.5964]
[1741504984411,5.1051,2186.5,2185.9,3.8042]
[1741504984609,5.1051,2186.5,2186.0,0.54903]
[1741504984919,0.54899,2186.2,2186.1,0.6558]
[1741504985215,0.54903,2186.1,2185.9,3.8042]
[1741504985512,6.47744,2186.5,2185.9,4.35326]
[1741504985513,0.549,2186.2,2185.9,4.35326]
[1741504985713,0.549,2186.2,2186.0,0.6558]
[1741504987410,5.1051,2186.5,2186.0,0.6558]
[1741504987610,0.549,2186.2,2186.0,0.6558]
[1741504989416,0.54899,2186.2,2186.0,0.6558]
[1741504991322,1.15529,2186.2,2186.0,0.99624577]
[1741504992317,1.15529,2186.2,2186.1,0.6392]
[1741504993609,0.6063,2186.2,2186.1,0.6392]
[1741504994218,1.15529,2186.2,2186.1,0.6392]
[1741504994521,0.55585986,2186.3,2186.1,0.6392]
[1741504994720,0.00686986,2186.3,2186.1,0.6392]
[1741504994912,0.55584986,2186.3,2186.1,0.6392]
[1741504995110,0.00686986,2186.3,2186.1,0.6392]
[1741504995323,0.00686986,2186.3,2186.2,2.52799]
[1741504995521,0.00686986,2186.3,2186.2,5.73579]
[1741504999623,3.2078,2187.0,2186.2,5.1868]
[1741504999919,1.15712,2186.9,2186.6,0.54888]
[1741505000120,1.15712,2186.9,2186.7,0.5974]
[1741505001121,0.54884,2186.8,2186.7,0.5974]
[1741505001321,1.15713,2186.9,2186.7,0.5974]
[1741505002424,0.54883,2186.9,2186.7,0.5974]
[1741505003118,1.19483,2186.9,2186.7,0.5974]
[1741505004516,1.2647,2187.2,2186.7,1.14626]
[1741505004721,0.606,2187.1,2186.7,1.1989]
[1741505005126,1.81346,2187.2,2186.9,0.54881]
[1741505005318,1.2647,2187.2,2187.0,2.5875]
[1741505005623,0.54877,2187.1,2187.0,2.5875]
[1741505005818,1.81346,2187.2,2187.0,2.5875]
[1741505006021,0.54877,2187.1,2187.0,2.5875]
[1741505006227,0.54877,2187.1,2187.0,1.977]
[1741505006520,1.15477,2187.1,2187.0,1.977]
[1741505013424,0.54882,2186.9,2186.8,20.53]
[1741505022221,0.54887,2186.7,2186.6,0.00686986]
[1741505022833,1.18417,2186.7,2186.6,0.00686986]
[1741505024329,4.39197,2186.7,2186.6,0.00686986]
[1741505026836,0.54902,2186.1,2186.0,20.529]
[1741505027532,4.4961,2186.3,2185.6,5.1808]
[1741505027728,3.2078,2185.9,2185.3,5.1808]
[1741505027928,1.83739,2185.8,2185.7,0.00686986]
[1741505029831,2.46449,2185.8,2185.7,0.00686986]
[1741505030332,1.19539,2185.8,2185.7,0.00686986]
[1741505033138,1.79739,2185.8,2185.7,0.00686986]
[1741505042038,1.79739,2185.8,2185.7,9.86e-06]
[1741505043143,1.19539,2185.8,2185.7,9.86e-06]
[1741505044546,1.19539,2185.8,2185.7,0.61450986]
[1741505048554,1.19539,2185.8,2185.7,9.86e-06]
[1741505052953,5.19539,2185.8,2185.7,9.86e-06]
[1741505054753,6.79576023,2185.8,2185.7,9.86e-06]
[1741505055754,6.79576023,2185.8,2184.5,0.6469]
[1741505055755,0.54939,2184.6,2184.5,0.6469]
[1741505056057,0.54939,2184.6,2184.5,0.6507]
[1741505065058,0.54938,2184.7,2184.5,1.20012]
[1741505065258,3.21466986,2184.8,2184.6,0.6404]
[1741505065568,3.76400986,2184.8,2184.7,0.6223]
[1741505065768,3.21466986,2184.8,2184.7,1.17167]
[1741505065963,3.76400986,2184.8,2184.7,0.6223]
[1741505071169,0.54939,2184.6,2184.5,0.6507]
[1741505072567,0.54939,2184.6,2184.5,1.2899]
[1741505076869,0.54938,2184.7,2184.5,1.2899]
[1741505077070,3.21466986,2184.8,2184.5,1.2899]
[1741505077273,0.54939,2184.6,2184.5,1.2899]
[1741505077468,3.21466986,2184.8,2184.5,1.83931]
[1741505078068,3.76402986,2184.8,2184.5,1.83931]
[1741505078269,3.21466986,2184.8,2184.5,1.2899]
[1741505078574,0.54938,2184.7,2184.5,1.2899]
[1741505079774,3.21466986,2184.8,2184.5,1.83932]
[1741505079974,0.54937,2184.7,2184.5,1.83932]
[1741505080276,3.21466986,2184.8,2184.5,1.83932]
[1741505080475,3.76401986,2184.8,2184.5,1.2899]
[1741505080773,3.76401986,2184.8,2184.6,0.54939]
[1741505081361,3.76401986,2184.8,2184.5,1.8393]
[1741505081977,3.21466986,2184.8,2184.5,1.8393]
[1741505082274,0.54937,2184.7,2184.5,1.8393]
[1741505082774,3.21466986,2184.8,2184.5,1.8393]
[1741505082971,0.54937,2184.7,2184.5,1.8393]
[1741505083974,0.54937,2184.7,2184.5,1.2899]
[1741505084867,0.54937,2184.7,2184.5,1.83931]
[1741505085367,3.76402986,2184.8,2184.5,1.83931]
[1741505085773,3.21466986,2184.8,2184.5,1.2899]
[1741505085974,0.00686986,2184.8,2184.6,0.54938]
[1741505086177,0.00686986,2184.8,2184.5,1.2899]
[1741505086178,0.00686986,2184.8,2184.7,3.75717]
[1741505086473,1.19386,2185.2,2184.7,5.1758]
[1741505086676,1.19386,2185.2,2185.0,0.54928]
[1741505086876,1.19386,2185.2,2185.1,0.6253]
[1741505087172,1.19384,2185.2,2185.1,0.6253]
[1741505088371,0.6446,2185.2,2185.1,1.17457]
[1741505088571,0.6446,2185.2,2185.1,0.6253]
[1741505088870,0.6446,2185.2,2185.1,1.17457]
[1741505089073,1.19384,2185.2,2185.1,0.6253]
[1741505089577,0.6446,2185.2,2185.1,0.6253]
[1741505089875,1.19384,2185.2,2185.1,0.6253]
[1741505090472,0.6446,2185.2,2185.1,0.6253]
[1741505090876,1.19384,2185.2,2185.1,0.6253]
[1741505094071,0.6446,2185.2,2185.0,3.2078]
[1741505094276,0.54927,2185.1,2185.0,3.2078]
[1741505095781,1.19385,2185.2,2185.0,3.75708]
[1741505095976,1.19385,2185.2,2185.0,3.8352]
[1741505095977,0.54927,2185.1,2185.0,3.8352]
[1741505096577,1.19386,2185.2,2185.0,3.8352]
[1741505097679,0.54927,2185.1,2185.0,3.8352]
[1741505098380,1.19386,2185.2,2185.0,3.8352]
[1741505098576,0.6446,2185.2,2185.0,3.8352]
[1741505098778,1.19385,2185.2,2185.0,5.02598]
[1741505098975,0.6446,2185.2,2185.0,4.4767]
[1741505099278,0.6446,2185.2,2185.1,0.54927]
[1741505099874,0.6446,2185.2,2185.0,5.02598]
[1741505100071,1.19384,2185.2,2185.0,4.38448]
[1741505100280,0.54927,2185.1,2185.0,3.8352]
[1741505100479,0.54927,2185.1,2185.0,3.2078]
[1741505101674,0.6446,2185.2,2185.0,3.75708]
[1741505102276,0.6446,2185.2,2185.0,3.75709]
[1741505102482,0.6446,2185.2,2185.1,0.6536]
[1741505102984,0.6446,2185.2,2185.1,1.20287]
[1741505107491,0.6446,2185.2,2185.1,0.6536]
[1741505107691,0.6446,2185.2,2185.0,4.38639]
[1741505107993,0.6446,2185.2,2185.1,0.54927]
[1741505108689,0.6446,2185.2,2185.1,1.18737]
[1741505109087,0.6446,2185.2,2185.0,3.2078]
[1741505109390,1.19385,2185.2,2185.0,3.75707]
[1741505109593,0.6446,2185.2,2185.0,3.75707]
[1741505110489,0.6446,2185.2,2185.1,0.54927]
[1741505111489,0.6446,2185.2,2185.0,3.75708]
[1741505112796,1.19385,2185.2,2185.0,3.2078]
[1741505112996,0.6446,2185.2,2185.0,3.75709]
[1741505113198,0.6446,2185.2,2185.0,3.2078]
[1741505113799,0.6446,2185.2,2185.0,3.75708]
[1741505113998,0.6446,2185.2,2185.1,0.54927]
[1741505114298,0.6446,2185.2,2185.0,3.2078]
[1741505114595,0.6446,2185.2,2185.0,3.75708]
[1741505115098,0.6446,2185.2,2185.1,0.54927]
[1741505115293,0.6446,2185.2,2185.0,3.2078]
[1741505115499,0.6446,2185.2,2185.0,3.75708]
[1741505116895,1.19384,2185.2,2185.0,3.75708]
[1741505117193,0.6446,2185.2,2185.0,3.2078]
[1741505117393,0.54927,2185.1,2185.0,3.2078]
[1741505117594,1.19386,2185.2,2185.0,3.2078]
[1741505117791,1.19386,2185.2,2185.0,3.75709]
[1741505119198,1.19386,2185.2,2185.0,0.54929]
[1741505119793,0.6446,2185.2,2184.9,5.1708]
[1741505119991,1.19385,2185.2,2185.0,0.54929]
[1741505120199,0.6446,2185.2,2185.1,0.54927]
[1741505120501,1.18072,2185.3,2185.1,0.54927]
[1741505120800,1.2421,2185.3,2185.1,0.54925]
[1741505121293,0.00686986,2185.4,2185.2,0.54924]
[1741505121498,0.00686986,2185.4,2184.9,5.1708]
[1741505121499,0.00686986,2185.4,2185.3,1.82412]
[1741505121702,0.00686986,2185.4,2185.3,1.2749]
[1741505121998,0.00686986,2185.4,2185.3,1.82412]
[1741505122392,0.00686986,2185.4,2185.3,3.78712]
[1741505124303,0.00686986,2185.4,2185.3,4.15257044]
[1741505125004,0.00686986,2185.4,2185.3,3.78712]
[1741505134611,1.2361,2185.7,2185.6,0.54914]
[1741505135703,1.2361,2185.7,2185.5,3.75696]
[1741505136105,1.2361,2185.7,2185.6,0.54914]
[1741505136498,1.2361,2185.7,2185.5,3.75695]
[1741505136700,1.2361,2185.7,2185.6,0.54914]
[1741505137104,1.2361,2185.7,2185.5,3.2078]
[1741505137308,1.2361,2185.7,2185.5,3.75695]
[1741505137612,1.2361,2185.7,2185.6,0.54914]
[1741505137809,0.6106,2185.7,2185.5,3.2078]
[1741505138112,1.13932,2186.1,2185.8,0.54907]
[1741505138507,0.5903,2186.1,2185.9,0.54905]
[1741505138803,0.6498,2186.2,2185.9,0.6551]
[1741505139007,0.6498,2186.2,2186.1,0.54902]
[1741505139206,1.2409,2186.5,2186.3,0.54895]
[1741505139411,1.2409,2186.5,2186.1,1.963]
[1741505139412,1.2409,2186.5,2186.4,0.54894]
[1741505140015,3.2078,2186.6,2186.5,0.54892]
[1741505140408,0.614,2186.7,2186.5,3.2078]
[1741505140605,0.614,2186.7,2186.6,0.54889]
[1741505141213,0.614,2186.7,2186.5,5.1708]
[1741505141422,0.614,2186.7,2186.5,5.7197]
[1741505141717,0.614,2186.7,2186.5,5.71971]
[1741505142814,3.2078,2187.2,2186.5,5.1708]
[1741505143014,0.54877,2187.1,2186.5,5.1708]
[1741505143210,3.2078,2187.2,2186.6,0.54887]
[1741505143415,3.2078,2187.2,2186.6,0.55573986]
[1741505143416,0.54882,2186.9,2186.6,0.55573986]
[1741505143618,0.6449,2186.8,2186.6,0.55573986]
[1741505143916,1.19375,2186.8,2186.6,0.00686986]
[1741505144419,4.40155,2186.8,2186.6,0.00686986]
[1741505144618,3.8527,2186.8,2186.6,0.00686986]
[1741505144813,0.6018,2186.7,2186.6,0.00686986]
[1741505145915,3.8527,2186.8,2186.6,0.00686986]
[1741505146117,0.6449,2186.8,2186.6,0.00686986]
[1741505146419,0.6018,2186.7,2186.6,0.00686986]
[1741505148938,1.15067,2186.7,2186.6,0.00686986]
[1741505149130,1.2211,2186.7,2186.6,0.00686986]
[1741505152229,1.76997,2186.7,2186.6,0.00686986]
[1741505152432,1.2211,2186.7,2186.2,3.2078]
[1741505152735,0.5489,2186.6,2186.2,3.75677]
[1741505152937,0.54893,2186.5,2186.2,3.75677]
[1741505153134,0.54893,2186.5,2186.2,3.2078]
[1741505153331,0.54895,2186.4,2186.2,3.2078]
[1741505153628,1.2427,2186.3,2186.2,3.2078]
[1741505153835,1.79167,2186.3,2186.2,3.2078]
[1741505154735,1.2427,2186.3,2186.2,3.2078]
[1741505155039,1.79167,2186.3,2186.2,3.2078]
[1741505155530,1.79167,2186.3,2186.2,2.2243]
[1741505157528,1.2427,2186.3,2186.2,2.2243]
[1741505157741,1.79167,2186.3,2186.2,2.2243]
[1741505166337,0.54899,2186.2,2186.1,20.54686986]
[1741505167348,0.54899,2186.2,2186.1,21.84036986]
[1741505168348,3.8423,2186.5,2186.1,21.84036986]
[1741505168553,3.8423,2186.5,2186.2,1.975]
[1741505168851,3.75672,2186.5,2186.2,2.52398]
[1741505169348,0.54895,2186.4,2186.2,1.975]
[1741505170047,0.54897,2186.3,2186.2,1.975]
[1741505170662,0.54895,2186.4,2186.2,1.975]
[1741505171752,0.54893,2186.5,2186.2,2.52399]
[1741505172554,0.54893,2186.5,2186.2,1.975]
[1741505172851,0.54893,2186.5,2186.2,2.52399]
[1741505173253,1.23,2186.7,2186.2,1.975]
[1741505173556,0.54896,2186.4,2186.2,1.975]
[1741505173951,1.23,2186.7,2186.2,1.975]
[1741505173952,0.54897,2186.3,2186.2,1.975]
[1741505174153,0.54896,2186.4,2186.2,1.975]
[1741505174454,0.54897,2186.3,2186.2,1.975]
[1741505174643,1.23,2186.7,2186.2,1.975]
[1741505174847,0.54896,2186.4,2186.2,1.975]
[1741505175048,1.23,2186.7,2186.2,1.975]
[1741505175254,1.23,2186.7,2186.3,0.54895]
[1741505175460,3.2078,2186.8,2186.4,0.5953]
[1741505175653,0.54888,2186.7,2186.5,1.286]
[1741505176151,3.75665,2186.8,2186.6,1.976]
[1741505176344,0.54887,2186.7,2186.6,1.976]
[1741505178257,0.54889,2186.6,2186.5,1.286]
[1741505178555,0.54889,2186.6,2186.5,3.261]
[1741505178752,3.2078,2186.8,2186.5,3.261]
[1741505178753,0.54888,2186.7,2186.5,3.261]
[1741505180156,0.54889,2186.6,2186.5,3.261]
[1741505180357,0.54889,2186.6,2186.5,3.26]
[1741505180557,1.79458,2186.7,2186.5,3.26]
[1741505181649,0.54889,2186.6,2186.5,3.26]
[1741505183761,1.2474,2186.7,2186.1,24.30366986]
[1741505184058,0.6108,2186.6,2186.2,1.907]
[1741505184255,0.54897,2186.3,2186.2,3.883]
[1741505185964,0.54897,2186.3,2186.2,3.2785]
[1741505187563,0.54897,2186.3,2186.2,1.3025]
[1741505187959,0.6063,2186.4,2186.1,23.75466986]
[1741505188163,0.54899,2186.2,2186.1,20.54686986]
[1741505188663,1.16799,2186.2,2186.1,20.54686986]
[1741505189961,4.37579,2186.2,2186.1,20.54686986]
[1741505192665,1.16799,2186.2,2186.1,20.54686986]
[1741505194464,0.625,2186.3,2186.1,20.54686986]
[1741505194669,1.17397,2186.3,2186.2,0.5903]
[1741505194868,1.17397,2186.3,2186.2,1.2359]
[1741505196770,0.54899,2186.2,2186.1,20.54686986]
[1741505198875,0.54899,2186.2,2186.1,0.00686986]
[1741505208181,0.54899,2186.3,2186.1,0.00686986]
[1741505208381,0.54899,2186.2,2186.1,0.62146986]
[1741505209779,3.2078,2186.4,2186.1,0.62146986]
[1741505210087,0.54898,2186.3,2186.1,1.17047986]
[1741505210286,0.54898,2186.3,2186.1,0.62146986]
[1741505211087,0.54899,2186.2,2186.1,0.62146986]
[1741505212590,0.54899,2186.3,2186.1,0.62146986]
[1741505212783,0.54899,2186.2,2186.1,0.62146986]
[1741505212988,3.2078,2186.7,2186.1,3.82926986]
[1741505213286,3.2078,2186.7,2186.1,4.37826986]
[1741505213480,0.54893,2186.5,2186.2,0.54898]
[1741505213676,3.2078,2186.7,2186.3,2.58]
[1741505213981,0.54892,2186.5,2186.3,2.58]
[1741505214187,3.2078,2186.7,2186.3,2.58]
[1741505214486,0.54894,2186.4,2186.3,2.58]
[1741505216091,0.54893,2186.5,2186.3,2.58]
[1741505216283,3.2078,2186.7,2186.3,2.58]
[1741505216589,0.54893,2186.5,2186.3,2.58]
[1741505216788,0.54894,2186.5,2186.3,2.58]
[1741505217287,0.54894,2186.4,2186.3,2.58]
[1741505217681,3.2078,2186.7,2186.3,2.58]
[1741505217889,0.54892,2186.5,2186.3,2.58]
[1741505218285,0.54894,2186.4,2186.3,2.58]
[1741505218494,3.2078,2186.7,2186.3,2.58]
[1741505218495,0.54893,2186.5,2186.3,2.58]
[1741505219192,0.54894,2186.4,2186.3,2.58]
[1741505221790,0.54893,2186.5,2186.3,2.58]
[1741505222095,0.54891,2186.6,2186.3,2.58]
[1741505222394,0.54891,2186.6,2186.3,3.12895]
[1741505222689,0.54889,2186.6,2186.4,0.54893]
[1741505222894,0.54889,2186.6,2186.5,0.635]
[1741505223098,0.54889,2186.6,2186.5,1.2525]
[1741505223592,3.2078,2186.7,2186.3,0.608]
[1741505223794,0.54894,2186.4,2186.3,0.608]
[1741505224188,1.17214,2186.4,2186.3,0.608]
[1741505225491,0.54894,2186.4,2186.3,0.608]
[1741505225696,1.18313,2186.5,2186.3,0.608]
[1741505227196,0.6342,2186.5,2186.3,0.608]
[1741505227391,0.5489,2186.6,2186.4,0.54893]
[1741505227597,0.5489,2186.6,2186.3,0.608]
[1741505227598,0.5489,2186.6,2186.5,0.6031]
[1741505229696,3.2078,2186.7,2186.5,0.6031]
[1741505230092,0.54889,2186.6,2186.5,1.2305]
[1741505230494,3.2078,2186.7,2186.5,1.2305]
[1741505230696,0.54889,2186.6,2186.5,1.2305]
[1741505231499,3.75668,2186.7,2186.5,1.2305]
[1741505231897,0.54889,2186.6,2186.5,1.2305]
[1741505232301,3.2078,2186.7,2186.5,1.2305]
[1741505232796,0.54889,2186.6,2186.5,1.2305]
[1741505233598,3.2078,2186.7,2186.3,0.608]
[1741505233800,0.54894,2186.5,2186.3,0.608]
[1741505234003,0.54894,2186.4,2186.3,0.608]
[1741505234203,0.54894,2186.4,2186.3,2.578]
[1741505234394,3.2078,2186.7,2186.3,2.578]
[1741505234601,0.54893,2186.5,2186.3,2.578]
[1741505234801,0.54893,2186.5,2186.3,3.12697]
[1741505235207,0.54893,2186.5,2186.3,2.578]
[1741505235611,3.2078,2186.7,2186.3,3.12696]
[1741505235812,3.2078,2186.7,2186.3,2.578]
[1741505236002,0.54893,2186.5,2186.3,2.578]
[1741505236197,1.2169,2186.4,2186.3,2.578]
[1741505236402,0.54897,2186.3,2186.1,23.74666986]
[1741505236603,1.8545,2186.4,2186.2,1.969]
[1741505237107,1.8545,2186.4,2186.2,2.51798]
[1741505237403,0.5489,2186.6,2186.3,0.54897]
[1741505237604,0.54893,2186.5,2186.2,2.51797]
[1741505238109,1.8941,2186.6,2186.2,2.51797]
[1741505238309,0.54896,2186.4,2186.2,1.969]
[1741505238709,0.54893,2186.5,2186.2,1.969]
[1741505238910,0.54893,2186.5,2186.2,2.51797]
[1741505239506,2.44301,2186.6,2186.3,0.54896]
[1741505239706,0.54892,2186.5,2186.2,2.51797]
[1741505240013,0.54892,2186.5,2186.3,0.54896]
[1741505240309,1.8941,2186.6,2186.3,0.54897]
[1741505240310,2.443,2186.6,2186.3,0.54897]
[1741505240507,1.8941,2186.6,2186.4,1.78263]
[1741505241916,0.6309,2186.6,2186.4,1.78263]
[1741505242316,0.6309,2186.6,2186.4,1.2337]
[1741505242512,0.6309,2186.6,2186.4,1.78263]
[1741505244023,3.2078,2186.7,2186.4,1.2337]
[1741505244225,3.2078,2186.7,2186.5,1.1502]
[1741505244724,3.75667,2186.7,2186.5,0.6013]
[1741505245327,3.75667,2186.7,2186.5,1.15021]
[1741505245923,0.54889,2186.6,2186.5,0.6013]
[1741505246128,4.40328,2186.7,2186.5,0.6013]
[1741505246328,5.04507,2186.7,2186.6,1.969]